[Event "Championnat du monde jeunes U10"]
[Date "2024.11.23"]
[White "Ling, Chenxuan"]
[Black "Zhou, Guoyu"]
[WhiteElo "1967"]
[BlackElo "1809"]
[Round "8.10"]
[Result "1/2-1/2"]
[TimeControl "5400+30"]

1. d4 {[%clk 1:30:31]} 1... d5 {[%clk 1:30:55]} 2. c4 {[%clk 1:30:35]} 2... e6
{[%clk 1:31:18]} 3. Nf3 {[%clk 1:31:00]} 3... Nf6 {[%clk 1:31:42]} 4. Nc3 {[%clk
1:31:25]} 4... c5 {[%clk 1:31:48]} 5. cxd5 {[%clk 1:29:36]} 5... cxd4 {[%clk
1:32:00]} 6. Qa4+ {[%clk 1:28:00]} 6... Qd7 {[%clk 1:31:17]} 7. Qxd7+ {[%clk
1:20:34]} 7... Bxd7 {[%clk 1:24:57]} 8. dxe6 {[%clk 1:19:25]} 8... dxc3 {[%clk
1:15:16]} 9. exd7+ {[%clk 1:19:38]} 9... Nbxd7 {[%clk 1:15:30]} 10. bxc3 {[%clk
1:19:51]} 10... Rc8 {[%clk 1:15:24]} 11. Bb2 {[%clk 1:15:28]} 11... Ne4 {[%clk
1:09:09]} 12. Rc1 {[%clk 1:11:29]} 12... Nb6 {[%clk 1:06:16]} 13. e3 {[%clk
1:09:48]} 13... Nc4 {[%clk 1:03:55]} 14. Bxc4 {[%clk 1:01:32]} 14... Rxc4 {[%clk
1:04:17]} 15. O-O {[%clk 1:01:11]} 15... Be7 {[%clk 1:03:58]} 16. Rfd1 {[%clk
0:58:25]} 16... Bf6 {[%clk 1:03:22]} 17. Nd2 {[%clk 0:56:06]} 17... Nxd2 {[%clk
1:03:42]} 18. Rxd2 {[%clk 0:56:34]} 18... Ra4 {[%clk 1:02:42]} 19. a3 {[%clk
0:53:48]} 19... Rc4 {[%clk 1:02:42]} 20. Kf1 {[%clk 0:53:32]} 20... Ke7 {[%clk
1:02:58]} 21. Rcd1 {[%clk 0:52:26]} 21... Rc7 {[%clk 1:03:13]} 22. Ke2 {[%clk
0:40:40]} 22... Rhc8 {[%clk 1:03:03]} 23. Rd3 {[%clk 0:39:08]} 23... Ke8 {[%clk
1:03:02]} 24. Kd2 {[%clk 0:39:00]} 24... b5 {[%clk 1:01:39]} 25. e4 {[%clk
0:35:51]} 25... Rc4 {[%clk 1:01:27]} 26. f3 {[%clk 0:34:28]} 26... a5 {[%clk
1:01:29]} 27. Ke2 {[%clk 0:26:43]} 27... b4 {[%clk 0:58:32]} 28. e5 {[%clk
0:25:10]} 28... Be7 {[%clk 0:44:41]} 29. axb4 {[%clk 0:20:43]} 29... axb4 {[%clk
0:44:32]} 30. Kd2 {[%clk 0:19:15]} 30... f6 {[%clk 0:27:49]} 31. Re1 {[%clk
0:15:56]} 31... Kf8 {[%clk 0:23:41]} 32. Re4 {[%clk 0:14:18]} 32... Rxe4 {[%clk
0:21:37]} 33. fxe4 {[%clk 0:14:42]} 33... fxe5 {[%clk 0:21:29]} 34. cxb4 {[%clk
0:14:53]} 34... Bxb4+ {[%clk 0:21:57]} 35. Kd1 {[%clk 0:15:21]} 35... Rc4 {[%clk
0:21:30]} 36. Bxe5 {[%clk 0:14:56]} 36... Rxe4 {[%clk 0:21:45]} 37. Bd6+ {[%clk
0:15:22]} 1/2-1/2

[Variant "Standard"]
[Site "Europe Echecs"]

[Event "Championnat du monde jeunes U10"]
[Date "2024.11.23"]
[White "Zhauynbay, Alimzhan"]
[Black "Mirzhanov, Arlan"]
[WhiteElo "1953"]
[BlackElo "1721"]
[Round "8.11"]
[Result "0-1"]
[TimeControl "5400+30"]

1. e4 {[%clk 1:30:49]} 1... e5 {[%clk 1:30:36]} 2. Nf3 {[%clk 1:31:12]} 2... Nc6
{[%clk 1:31:02]} 3. Bb5 {[%clk 1:31:26]} 3... a6 {[%clk 1:31:22]} 4. Ba4 {[%clk
1:31:50]} 4... Nf6 {[%clk 1:31:45]} 5. O-O {[%clk 1:31:59]} 5... b5 {[%clk
1:30:58]} 6. Bb3 {[%clk 1:32:18]} 6... Be7 {[%clk 1:31:21]} 7. Re1 {[%clk
1:32:25]} 7... O-O {[%clk 1:31:46]} 8. a4 {[%clk 1:32:11]} 8... Bb7 {[%clk
1:30:38]} 9. d3 {[%clk 1:32:00]} 9... d5 {[%clk 1:19:23]} 10. axb5 {[%clk
1:24:34]} 10... axb5 {[%clk 1:19:11]} 11. Rxa8 {[%clk 1:24:45]} 11... Bxa8
{[%clk 1:19:33]} 12. exd5 {[%clk 1:19:03]} 12... Nxd5 {[%clk 1:18:21]} 13. Nxe5
{[%clk 1:13:23]} 13... Nd4 {[%clk 1:16:55]} 14. c3 {[%clk 1:06:55]} 14... Nxb3
{[%clk 1:14:58]} 15. Qxb3 {[%clk 1:06:13]} 15... Bg5 {[%clk 1:11:22]} 16. Nd2
{[%clk 0:56:17]} 16... Bh6 {[%clk 0:53:02]} 17. Qxb5 {[%clk 0:48:19]} 17... Nf4
{[%clk 0:52:26]} 18. Ndf3 {[%clk 0:35:43]} 18... Nxg2 {[%clk 0:46:20]} 19. Kxg2
{[%clk 0:31:12]} 19... Bxc1 {[%clk 0:46:38]} 20. Nd7 {[%clk 0:28:08]} 20... c5
{[%clk 0:39:55]} 21. Re5 {[%clk 0:19:28]} 21... Qh4 {[%clk 0:36:58]} 22. Re4
{[%clk 0:07:25]} 22... Bxe4 {[%clk 0:37:06]} 23. dxe4 {[%clk 0:07:55]} 23...
Qg4+ {[%clk 0:34:06]} 24. Kf1 {[%clk 0:08:19]} 24... Qxf3 {[%clk 0:30:04]} 25.
Nxf8 {[%clk 0:08:31]} 25... Be3 {[%clk 0:30:31]} 0-1

[Variant "Standard"]
[Site "Europe Echecs"]

[Event "Championnat du monde jeunes U10"]
[Date "2024.11.23"]
[White "Anetov, Amirzhan"]
[Black "Fuentes de Nova, Sebastian"]
[WhiteElo "1767"]
[BlackElo "1929"]
[Round "8.12"]
[Result "1-0"]
[TimeControl "5400+30"]

1. e4 {[%clk 1:30:59]} 1... e5 {[%clk 1:30:54]} 2. Nf3 {[%clk 1:31:26]} 2... Nc6
{[%clk 1:30:44]} 3. Bb5 {[%clk 1:31:50]} 3... a6 {[%clk 1:31:04]} 4. Ba4 {[%clk
1:32:17]} 4... Nf6 {[%clk 1:31:27]} 5. O-O {[%clk 1:32:42]} 5... Nxe4 {[%clk
1:31:52]} 6. d4 {[%clk 1:33:09]} 6... b5 {[%clk 1:32:15]} 7. Bb3 {[%clk
1:33:35]} 7... d5 {[%clk 1:32:38]} 8. dxe5 {[%clk 1:34:00]} 8... Be6 {[%clk
1:33:01]} 9. Be3 {[%clk 1:34:28]} 9... Be7 {[%clk 1:32:16]} 10. c3 {[%clk
1:34:55]} 10... O-O {[%clk 1:32:21]} 11. Nbd2 {[%clk 1:35:21]} 11... Bg4 {[%clk
1:31:02]} 12. Nxe4 dxe4 {[%clk 1:31:00]} 13. Qd5 {[%clk 1:36:15]} 13... exf3
{[%clk 1:29:57]} 14. Qxc6 {[%clk 1:36:41]} 14... fxg2 {[%clk 1:29:26]} 15. Qxg2
{[%clk 1:37:05]} 15... Qc8 {[%clk 1:27:54]} 16. Bh6 {[%clk 1:37:27]} 16... gxh6
{[%clk 1:25:38]} 17. f3 {[%clk 1:37:53]} 17... h5 {[%clk 1:25:28]} 18. fxg4
{[%clk 1:35:38]} 18... Qxg4 {[%clk 1:25:00]} 19. Qxg4+ {[%clk 1:35:54]} 19...
hxg4 {[%clk 1:25:08]} 20. Rf4 {[%clk 1:36:15]} 20... h5 {[%clk 1:18:48]} 21.
Raf1 {[%clk 1:36:17]} 21... Rad8 {[%clk 1:14:14]} 22. Rxf7 {[%clk 1:36:05]}
22... Rxf7 {[%clk 1:13:36]} 23. Rxf7 {[%clk 1:36:22]} 23... Bc5+ {[%clk
1:13:58]} 24. Kg2 {[%clk 1:35:13]} 24... Kh8 {[%clk 1:13:11]} 25. Rxc7 {[%clk
1:35:05]} 25... Rd2+ {[%clk 1:12:40]} 26. Kg3 {[%clk 1:35:25]} 26... Bf2+ {[%clk
1:12:04]} 27. Kf4 {[%clk 1:35:48]} 27... Bg1 {[%clk 1:09:18]} 28. Kg5 {[%clk
1:35:34]} 28... Bxh2 {[%clk 1:09:21]} 29. Kg6 {[%clk 1:35:51]} 1-0

[Variant "Standard"]
[Site "Europe Echecs"]

[Event "Championnat du monde jeunes U10"]
[Date "2024.11.23"]
[White "Cao, Frank Zhongtian"]
[Black "Sameh Mohamed, Abdalrahman"]
[WhiteElo "1793"]
[BlackElo "2238"]
[Round "8.13"]
[Result "0-1"]
[TimeControl "5400+30"]

1. e4 {[%clk 1:30:56]} 1... e5 {[%clk 1:30:53]} 2. Nf3 {[%clk 1:31:21]} 2... Nc6
{[%clk 1:31:18]} 3. Bb5 {[%clk 1:31:49]} 3... a6 {[%clk 1:31:41]} 4. Ba4 {[%clk
1:32:15]} 4... Nf6 {[%clk 1:32:07]} 5. O-O {[%clk 1:32:36]} 5... Be7 {[%clk
1:32:33]} 6. Re1 {[%clk 1:32:56]} 6... b5 {[%clk 1:32:59]} 7. Bb3 {[%clk
1:33:20]} 7... O-O {[%clk 1:33:24]} 8. a4 {[%clk 1:33:43]} 8... Bb7 {[%clk
1:33:47]} 9. d3 {[%clk 1:34:08]} 9... d6 {[%clk 1:33:00]} 10. Nbd2 {[%clk
1:34:30]} 10... Na5 {[%clk 1:33:06]} 11. Ba2 {[%clk 1:34:55]} 11... Re8 {[%clk
1:32:40]} 12. c3 {[%clk 1:19:41]} 12... c5 {[%clk 1:31:17]} 13. Bb1 {[%clk
1:13:06]} 13... Bf8 {[%clk 1:30:11]} 14. h3 {[%clk 1:09:01]} 14... Qb6 {[%clk
1:26:27]} 15. Bc2 {[%clk 1:01:07]} 15... g6 {[%clk 1:17:32]} 16. Nf1 {[%clk
0:45:12]} 16... Bg7 {[%clk 1:17:55]} 17. Bg5 {[%clk 0:35:57]} 17... d5 {[%clk
1:14:14]} 18. Bxf6 {[%clk 0:33:17]} 18... Qxf6 {[%clk 1:14:33]} 19. Ne3 {[%clk
0:28:38]} 19... d4 {[%clk 1:13:56]} 20. Ng4 {[%clk 0:24:53]} 20... Qd6 {[%clk
1:13:49]} 21. Ngh2 {[%clk 0:19:55]} 21... c4 {[%clk 1:10:48]} 22. cxd4 {[%clk
0:15:22]} 22... exd4 {[%clk 1:10:55]} 23. dxc4 {[%clk 0:15:09]} 23... bxc4
{[%clk 1:11:03]} 24. Qd2 {[%clk 0:09:25]} 24... Nc6 {[%clk 1:10:48]} 25. Rad1
{[%clk 0:07:19]} 25... Rad8 {[%clk 1:10:59]} 26. Bb1 {[%clk 0:06:18]} 26... Qc5
{[%clk 1:07:29]} 27. Rc1 {[%clk 0:05:27]} 27... c3 {[%clk 1:06:48]} 28. bxc3
{[%clk 0:04:49]} 28... dxc3 {[%clk 1:07:13]} 29. Qe3 {[%clk 0:03:41]} 29... Qxe3
{[%clk 1:05:53]} 30. Rxe3 {[%clk 0:03:27]} 30... Bh6 {[%clk 1:05:31]} 31. Rexc3
{[%clk 0:03:50]} 31... Bxc1 {[%clk 1:05:55]} 32. Rxc1 {[%clk 0:04:15]} 32... Nd4
{[%clk 1:06:07]} 33. Re1 {[%clk 0:02:43]} 33... Nxf3+ {[%clk 1:05:28]} 34. Nxf3
{[%clk 0:03:04]} 34... Rc8 {[%clk 1:05:51]} 35. Bd3 {[%clk 0:02:00]} 35... Rc3
{[%clk 1:06:11]} 36. Bf1 {[%clk 0:01:38]} 36... Ra3 {[%clk 1:06:22]} 37. e5
{[%clk 0:01:04]} 37... Rxa4 {[%clk 1:06:22]} 38. Re3 {[%clk 0:00:50]} 38... Ra1
{[%clk 1:06:45]} 39. Nd2 {[%clk 0:01:00]} 39... Rd8 {[%clk 1:07:09]} 40. Nb3
{[%clk 0:01:02]} 40... Rb1 {[%clk 1:07:33]} 41. Nc5 {[%clk 0:00:45]} 41... Rdd1
{[%clk 1:07:50]} 42. Nxb7 {[%clk 0:01:04]} 42... Rxf1+ {[%clk 1:08:11]} 43. Kh2
{[%clk 0:01:30]} 43... Rxb7 {[%clk 1:08:34]} 0-1

[Variant "Standard"]
[Site "Europe Echecs"]

[Event "Championnat du monde jeunes U10"]
[Date "2024.11.23"]
[White "Annapureddy, Rheyansh Reddy"]
[Black "Liu, Liam"]
[WhiteElo "2122"]
[BlackElo "1783"]
[Round "8.14"]
[Result "1-0"]
[TimeControl "5400+30"]

1. e4 {[%clk 1:30:52]} 1... c6 {[%clk 1:30:54]} 2. d4 {[%clk 1:30:57]} 2... d5
{[%clk 1:31:14]} 3. exd5 {[%clk 1:31:23]} 3... cxd5 {[%clk 1:31:33]} 4. Bd3
{[%clk 1:31:52]} 4... Nc6 {[%clk 1:31:48]} 5. c3 {[%clk 1:32:16]} 5... Nf6
{[%clk 1:31:59]} 6. h3 {[%clk 1:32:43]} 6... g6 {[%clk 1:32:19]} 7. Nf3 {[%clk
1:33:08]} 7... Bf5 {[%clk 1:32:35]} 8. O-O {[%clk 1:33:35]} 8... Bxd3 {[%clk
1:32:53]} 9. Qxd3 {[%clk 1:34:01]} 9... Bg7 {[%clk 1:33:11]} 10. Bf4 {[%clk
1:33:48]} 10... O-O {[%clk 1:33:27]} 11. Nbd2 {[%clk 1:34:05]} 11... e6 {[%clk
1:33:22]} 12. Ne5 {[%clk 1:33:46]} 12... Nxe5 {[%clk 1:32:54]} 13. Bxe5 {[%clk
1:34:14]} 13... Nd7 {[%clk 1:28:59]} 14. Bxg7 {[%clk 1:34:14]} 14... Kxg7 {[%clk
1:29:18]} 15. f4 {[%clk 1:32:57]} 15... Rc8 {[%clk 1:25:23]} 16. g4 {[%clk
1:29:07]} 16... f5 {[%clk 1:16:54]} 17. g5 {[%clk 1:27:54]} 17... Nb6 {[%clk
1:12:15]} 18. Kg2 {[%clk 1:25:30]} 18... Rc6 {[%clk 1:11:39]} 19. h4 {[%clk
1:23:39]} 19... Nc4 {[%clk 1:01:39]} 20. Nxc4 {[%clk 1:22:48]} 20... dxc4 {[%clk
1:02:00]} 21. Qe2 {[%clk 1:19:59]} 21... Qd5+ {[%clk 1:00:15]} 22. Kf2 {[%clk
1:15:41]} 22... b5 {[%clk 0:59:09]} 23. a3 {[%clk 1:10:54]} 23... a5 {[%clk
0:58:35]} 24. h5 {[%clk 1:07:21]} 24... Rh8 {[%clk 0:56:08]} 25. h6+ {[%clk
1:02:40]} 25... Kf7 {[%clk 0:56:24]} 26. Rfe1 {[%clk 1:01:19]} 26... Qd6 {[%clk
0:51:15]} 27. Qf3 {[%clk 0:55:40]} 27... Rb8 {[%clk 0:44:11]} 28. Rad1 {[%clk
0:47:04]} 28... Qd5 {[%clk 0:42:41]} 29. Qxd5 {[%clk 0:46:09]} 29... exd5 {[%clk
0:43:03]} 30. Re5 {[%clk 0:46:14]} 30... Rd6 {[%clk 0:43:23]} 31. Rde1 {[%clk
0:46:24]} 31... Rd7 {[%clk 0:43:45]} 32. Re6 {[%clk 0:45:51]} 32... b4 {[%clk
0:43:55]} 33. Kg3 {[%clk 0:36:31]} 33... bxc3 {[%clk 0:43:12]} 34. bxc3 {[%clk
0:36:41]} 34... Rdb7 {[%clk 0:43:09]} 35. R1e3 {[%clk 0:34:17]} 35... Rb3 {[%clk
0:40:59]} 36. Re7+ {[%clk 0:33:45]} 36... Kg8 {[%clk 0:41:21]} 37. Rg7+ {[%clk
0:33:57]} 37... Kh8 {[%clk 0:41:44]} 38. Ree7 {[%clk 0:33:27]} 38... Rxc3+
{[%clk 0:42:07]} 39. Kh4 {[%clk 0:33:46]} 39... Rh3+ {[%clk 0:40:11]} 40. Kxh3
{[%clk 0:34:09]} 40... Rb3+ {[%clk 0:40:20]} 41. Kh4 {[%clk 0:34:25]} 41... Rh3+
{[%clk 0:40:30]} 42. Kxh3 {[%clk 0:34:45]} 42... a4 {[%clk 0:40:55]} 43. Re8#
{[%clk 0:35:09]} 1-0

[Variant "Standard"]
[Site "Europe Echecs"]

[Event "Championnat du monde jeunes U10"]
[Date "2024.11.23"]
[White "Azimov, Yasin"]
[Black "Chen, Chicheng Leon"]
[WhiteElo "1759"]
[BlackElo "1987"]
[Round "8.15"]
[Result "1-0"]
[TimeControl "5400+30"]

1. d4 {[%clk 1:30:46]} 1... Nf6 {[%clk 1:30:51]} 2. c4 {[%clk 1:31:08]} 2... g6
{[%clk 1:31:11]} 3. Nf3 {[%clk 1:30:29]} 3... Bg7 {[%clk 1:31:35]} 4. Nc3 {[%clk
1:30:33]} 4... d5 {[%clk 1:32:01]} 5. e3 {[%clk 1:24:30]} 5... O-O {[%clk
1:32:24]} 6. Bd3 {[%clk 1:23:36]} 6... c5 {[%clk 1:31:39]} 7. O-O {[%clk
1:22:52]} 7... cxd4 {[%clk 1:31:48]} 8. exd4 {[%clk 1:23:11]} 8... Nc6 {[%clk
1:30:08]} 9. h3 {[%clk 1:19:46]} 9... dxc4 {[%clk 1:19:24]} 10. Bxc4 {[%clk
1:19:49]} 10... b6 {[%clk 1:19:12]} 11. a3 {[%clk 1:00:18]} 11... Bb7 {[%clk
1:16:24]} 12. Bg5 {[%clk 0:56:05]} 12... Rc8 {[%clk 1:08:09]} 13. Ba2 {[%clk
0:54:44]} 13... Qc7 {[%clk 0:57:32]} 14. Qe2 {[%clk 0:43:00]} 14... Rfd8 {[%clk
0:40:40]} 15. Rac1 {[%clk 0:36:51]} 15... h6 {[%clk 0:34:20]} 16. Be3 {[%clk
0:32:34]} 16... e6 {[%clk 0:32:53]} 17. Rfd1 {[%clk 0:30:27]} 17... Qe7 {[%clk
0:28:55]} 18. Qc2 {[%clk 0:15:45]} 18... Na5 {[%clk 0:24:34]} 19. Ne5 {[%clk
0:12:31]} 19... Nd5 {[%clk 0:23:29]} 20. Nxd5 {[%clk 0:11:47]} 20... exd5 {[%clk
0:20:28]} 21. Qd2 {[%clk 0:08:57]} 21... Kh7 {[%clk 0:15:05]} 22. b4 {[%clk
0:04:35]} 22... Nc6 {[%clk 0:14:27]} 23. Nxc6 {[%clk 0:04:36]} 23... Bxc6 {[%clk
0:14:45]} 24. Re1 {[%clk 0:04:36]} 24... Qf6 {[%clk 0:13:07]} 25. Qd3 {[%clk
0:04:00]} 25... Qd6 {[%clk 0:11:02]} 26. Qb3 {[%clk 0:02:30]} 26... a6 {[%clk
0:10:35]} 27. Rc3 {[%clk 0:02:23]} 27... Ba4 {[%clk 0:10:02]} 28. Qb2 {[%clk
0:02:44]} 28... Rxc3 {[%clk 0:06:11]} 29. Qxc3 {[%clk 0:03:13]} 29... Bd7 {[%clk
0:06:18]} 30. Qb3 {[%clk 0:03:07]} 30... Bb5 {[%clk 0:04:43]} 31. Qc3 {[%clk
0:02:20]} 31... Bc4 {[%clk 0:04:26]} 32. Bb1 {[%clk 0:02:33]} 32... Re8 {[%clk
0:04:10]} 33. g3 {[%clk 0:02:36]} 33... b5 34. Bf4 {[%clk 0:02:18]} 34... Rxe1+
{[%clk 0:02:22]} 35. Qxe1 {[%clk 0:02:45]} 35... Qe6 {[%clk 0:02:46]} 36. Qxe6
{[%clk 0:02:10]} 36... fxe6 {[%clk 0:03:13]} 37. Be5 {[%clk 0:02:12]} 37... Bxe5
{[%clk 0:02:55]} 38. dxe5 {[%clk 0:02:41]} 38... Kg7 {[%clk 0:03:16]} 39. f4
{[%clk 0:02:57]} 39... g5 {[%clk 0:03:14]} 40. Kf2 {[%clk 0:03:14]} 40... gxf4
{[%clk 0:02:34]} 41. gxf4 {[%clk 0:03:43]} 41... d4 {[%clk 0:02:22]} 42. Kf3
{[%clk 0:02:34]} 42... Bd5+ {[%clk 0:01:47]} 43. Be4 {[%clk 0:03:02]} 43... Bc4
{[%clk 0:01:37]} 44. Bb7 {[%clk 0:03:02]} 44... Kg6 {[%clk 0:01:41]} 45. Ke4
{[%clk 0:02:59]} 45... d3 {[%clk 0:02:02]} 46. Ke3 {[%clk 0:03:20]} 46... Kh5
{[%clk 0:02:05]} 47. Be4 {[%clk 0:03:03]} 47... Kh4 {[%clk 0:01:22]} 48. Bxd3
{[%clk 0:03:13]} 48... Bd5 {[%clk 0:01:35]} 49. f5 {[%clk 0:03:08]} 49... exf5
{[%clk 0:01:33]} 50. Bxf5 {[%clk 0:03:36]} 50... Kg5 {[%clk 0:01:53]} 51. Bc8
{[%clk 0:03:56]} 51... h5 {[%clk 0:02:00]} 52. Kd4 {[%clk 0:04:17]} 52... Bg2
{[%clk 0:02:09]} 53. h4+ {[%clk 0:04:07]} 53... Kxh4 {[%clk 0:02:22]} 54. e6
{[%clk 0:04:30]} 54... Kg5 {[%clk 0:02:32]} 55. Ke5 {[%clk 0:04:07]} 55... h4
{[%clk 0:02:40]} 56. e7 {[%clk 0:04:18]} 56... Bc6 {[%clk 0:03:09]} 57. Kd6
{[%clk 0:04:40]} 57... Be8 {[%clk 0:03:15]} 58. Bd7 {[%clk 0:05:01]} 58... Bf7
{[%clk 0:02:45]} 59. e8=Q {[%clk 0:05:15]} 59... Bxe8 {[%clk 0:03:04]} 60. Bxe8
{[%clk 0:05:39]} 60... h3 {[%clk 0:02:33]} 61. Bc6 {[%clk 0:05:58]} 61... h2
{[%clk 0:02:49]} 62. Kc7 {[%clk 0:06:20]} 1-0

[Variant "Standard"]
[Site "Europe Echecs"]

[Event "Championnat du monde jeunes U10"]
[Date "2024.11.23"]
[White "Kadyr, Aldiyar"]
[Black "Mutyalapati, Modith Aaroh"]
[WhiteElo "1759"]
[BlackElo "1893"]
[Round "8.16"]
[Result "1-0"]
[TimeControl "5400+30"]

1. e4 {[%clk 1:30:52]} 1... e6 {[%clk 1:30:56]} 2. d4 {[%clk 1:31:15]} 2... d5
{[%clk 1:31:22]} 3. Nd2 {[%clk 1:31:35]} 3... dxe4 {[%clk 1:31:24]} 4. Nxe4
{[%clk 1:32:01]} 4... Nd7 {[%clk 1:31:46]} 5. Bd3 {[%clk 1:30:50]} 5... Ngf6
{[%clk 1:32:02]} 6. Qe2 {[%clk 1:30:23]} 6... Be7 {[%clk 1:26:09]} 7. Nf3 {[%clk
1:28:54]} 7... Nxe4 {[%clk 1:18:10]} 8. Bxe4 {[%clk 1:29:18]} 8... Nf6 {[%clk
1:18:34]} 9. Bxb7 {[%clk 1:28:38]} 9... Bxb7 {[%clk 1:16:58]} 10. Qb5+ {[%clk
1:29:04]} 10... Qd7 {[%clk 1:17:18]} 11. Qxb7 {[%clk 1:29:30]} 11... O-O {[%clk
1:17:43]} 12. Qa6 {[%clk 1:28:57]} 12... c5 {[%clk 1:17:39]} 13. dxc5 {[%clk
1:27:03]} 13... Bxc5 {[%clk 1:14:55]} 14. O-O {[%clk 1:19:50]} 14... Nd5 {[%clk
1:13:03]} 15. Qd3 {[%clk 1:15:42]} 15... Qc7 {[%clk 1:07:47]} 16. a3 {[%clk
1:08:47]} 16... Rfd8 {[%clk 1:05:12]} 17. Qe2 {[%clk 1:08:23]} 17... Rac8 {[%clk
1:03:22]} 18. c4 {[%clk 1:02:15]} 18... Nf4 {[%clk 1:01:29]} 19. Bxf4 {[%clk
1:02:28]} 19... Qxf4 {[%clk 1:01:57]} 20. b4 {[%clk 1:01:46]} 20... Be7 {[%clk
0:59:19]} 21. c5 {[%clk 1:00:55]} 21... a5 {[%clk 0:59:26]} 22. Qe3 {[%clk
0:56:00]} 22... Qc4 {[%clk 0:58:19]} 23. Rac1 {[%clk 0:51:57]} 23... Qd5 {[%clk
0:52:18]} 24. Qe5 {[%clk 0:51:03]} 24... Qb7 {[%clk 0:51:38]} 25. Rc4 {[%clk
0:42:13]} 25... Qb5 {[%clk 0:49:50]} 26. Rg4 {[%clk 0:42:25]} 26... Bf8 {[%clk
0:48:13]} 27. h4 {[%clk 0:36:41]} 27... Rd5 {[%clk 0:44:51]} 28. Qe4 {[%clk
0:36:19]} 28... Qd7 {[%clk 0:40:46]} 29. Qe3 {[%clk 0:30:42]} 29... e5 {[%clk
0:36:40]} 30. Rc4 {[%clk 0:28:18]} 30... f6 {[%clk 0:36:43]} 31. Qb3 {[%clk
0:25:43]} 31... Kh8 {[%clk 0:35:55]} 32. Rfc1 {[%clk 0:22:59]} 32... Rd3 {[%clk
0:24:03]} 33. R4c3 {[%clk 0:18:57]} 33... Rxc3 {[%clk 0:22:59]} 34. Qxc3 {[%clk
0:19:19]} 34... axb4 {[%clk 0:21:44]} 35. axb4 {[%clk 0:19:27]} 35... Qb7 {[%clk
0:16:48]} 36. Nd2 {[%clk 0:14:16]} 36... g6 {[%clk 0:14:40]} 37. Nc4 {[%clk
0:11:05]} 37... Kg7 {[%clk 0:10:29]} 38. Nb6 {[%clk 0:10:43]} 38... Rc7 {[%clk
0:10:05]} 39. Qd3 {[%clk 0:09:45]} 39... Rf7 {[%clk 0:06:11]} 40. Qd5 {[%clk
0:09:29]} 40... Qa6 {[%clk 0:06:28]} 41. Qc4 {[%clk 0:06:41]} 41... Qa7 {[%clk
0:04:41]} 42. c6 Rc7 {[%clk 0:04:03]} 43. Nd5 {[%clk 0:06:33]} 43... Rc8 {[%clk
0:04:23]} 44. b5 {[%clk 0:06:29]} 44... Qb8 {[%clk 0:01:21]} 45. b6 {[%clk
0:06:40]} 45... Qd6 {[%clk 0:00:31]} 46. b7 {[%clk 0:06:42]} 1-0

[Variant "Standard"]
[Site "Europe Echecs"]

[Event "Championnat du monde jeunes U10"]
[Date "2024.11.23"]
[White "Li, Weilong"]
[Black "Meitzner, Jonathan Franz"]
[WhiteElo "1735"]
[BlackElo "1876"]
[Round "8.17"]
[Result "1-0"]
[TimeControl "5400+30"]

1. e4 {[%clk 1:30:57]} 1... c5 {[%clk 1:30:56]} 2. Nf3 {[%clk 1:31:23]} 2... e6
{[%clk 1:31:22]} 3. d4 {[%clk 1:31:50]} 3... cxd4 {[%clk 1:31:47]} 4. Nxd4
{[%clk 1:32:17]} 4... Nc6 {[%clk 1:32:10]} 5. Nc3 {[%clk 1:32:39]} 5... Qc7
{[%clk 1:32:34]} 6. Be3 {[%clk 1:33:06]} 6... a6 {[%clk 1:32:58]} 7. a3 {[%clk
1:33:33]} 7... Nf6 {[%clk 1:32:49]} 8. f4 {[%clk 1:33:59]} 8... d6 {[%clk
1:32:26]} 9. Qf3 {[%clk 1:34:21]} 9... Bd7 {[%clk 1:31:32]} 10. O-O-O {[%clk
1:33:31]} 10... Be7 {[%clk 1:30:35]} 11. Nb3 {[%clk 1:33:46]} 11... b5 {[%clk
1:28:27]} 12. g4 {[%clk 1:15:00]} 12... h6 {[%clk 1:08:31]} 13. e5 {[%clk
1:10:29]} 13... dxe5 {[%clk 1:01:09]} 14. fxe5 {[%clk 1:10:22]} 14... Nh7 {[%clk
1:00:09]} 15. Nc5 {[%clk 0:40:47]} 15... Bxc5 {[%clk 0:49:45]} 16. Bxc5 {[%clk
0:41:12]} 16... Qxe5 {[%clk 0:48:45]} 17. Ne4 {[%clk 0:41:04]} 17... Ng5 {[%clk
0:28:50]} 18. Qd3 {[%clk 0:40:14]} 18... Qd5 {[%clk 0:10:37]} 19. Nd6+ {[%clk
0:40:11]} 19... Kf8 {[%clk 0:09:26]} 20. Qxd5 {[%clk 0:39:37]} 20... exd5 {[%clk
0:09:36]} 21. Bg2 {[%clk 0:39:20]} 21... Ne6 {[%clk 0:07:07]} 22. Rxd5 {[%clk
0:38:54]} 22... Ne7 {[%clk 0:04:37]} 23. Rd2 {[%clk 0:38:14]} 23... Bc6 {[%clk
0:04:48]} 24. Rf1 {[%clk 0:37:26]} 24... f6 {[%clk 0:02:31]} 25. Bb4 {[%clk
0:33:31]} 25... Bxg2 {[%clk 0:02:50]} 26. Re1 {[%clk 0:33:33]} 26... Nc6 {[%clk
0:01:12]} 27. Rxe6 {[%clk 0:33:38]} 27... Bf3 {[%clk 0:00:51]} 28. Bc5 {[%clk
0:33:38]} 28... Bxg4 {[%clk 0:00:54]} 29. Ne4+ {[%clk 0:34:03]} 29... Kf7 {[%clk
0:00:54]} 30. Rxc6 {[%clk 0:34:26]} 30... Rhe8 {[%clk 0:00:49]} 31. Nd6+ {[%clk
0:34:50]} 1-0

[Variant "Standard"]
[Site "Europe Echecs"]